{"text_format":"1","workbook":"xlsx","n_sheets":4,"sheets":["Krycí list","Rekapitulace","Položky","VO"],"not_rendered":{"charts":0,"images":0,"macros":0,"external_links":0,"defined_names":52,"comments":0,"pivot_tables":0},"unopened":[],"bounds":{"document_bytes":16777216,"sheet_cells":100000,"rows_first":2000,"rows_last":500,"rows_between":2000,"halvings":0,"cell_chars":16384,"cell_head_chars":4096},"cells_cut":0,"cells_raw":0,"read":"whole","date_system":"1900"}

{"sheet":"Krycí list","index":0,"n_rows":45,"n_cols":8,"rows_kept":45,"cut":false,"hidden":false,"merged":[[36,1,44,6],[7,2,7,4],[8,2,8,4],[9,2,9,4],[10,2,10,4],[11,2,11,4],[22,0,22,1],[29,5,29,6],[30,5,30,6],[31,5,31,6],[32,5,32,6],[33,5,33,6],[51,1,51,6],[52,1,52,6],[53,1,53,6],[54,1,54,6],[45,1,45,6],[46,1,46,6],[47,1,47,6],[48,1,48,6],[49,1,49,6],[50,1,50,6]]}
["POLOŽKOVÝ ROZPOČET STAVBY"]
["Rozpočet",null,{"$f":"Rekapitulace!H1","v":"3150/03.2"},{"$f":"Rekapitulace!G2","v":"Komunikace - II etapa"},null,"JKSO ","822.59"]
[]
["Objekt",null,"Název objektu",null,null,"SKP "]
["03.2",null,"Komunikace",null,null,"Měrná jednotka","m2"]
["Stavba",null,"Název stavby",null,null,"Počet jednotek",995]
["3150",null,"Městský park Turnov (u letního kina) - II. etapa",null,null,"Náklady na m.j.",{"$f":"IF(PocetMJ=0,,ROUND((F30+F32)/PocetMJ,1))","v":0}]
["Projektant",null,null,null,null,"Typ rozpočtu"]
["Zpracovatel projektu"]
["Objednatel",null,"Město TURNOV"]
["Dodavatel",null,null,null,null,"Zakázkové číslo ","1550/2018"]
["Rozpočtoval",null,null,null,null,"Počet listů",5]
["ROZPOČTOVÉ NÁKLADY"]
["Základní rozpočtové náklady",null,null,"Ostatní náklady stavby"]
[null,"HSV celkem",{"$f":"HSV","v":0},{"$f":"Rekapitulace!A18","v":"Zařízení staveniště"},null,null,{"$f":"Rekapitulace!I18","v":0}]
["Z","PSV celkem",{"$f":"PSV","v":0},{"$f":"Rekapitulace!A19","v":"Provoz investora"},null,null,{"$f":"Rekapitulace!I19","v":0}]
["R","M práce celkem",{"$f":"Mont","v":0},{"$f":"Rekapitulace!A20","v":"Kompletační činnost (IČD)"},null,null,{"$f":"Rekapitulace!I20","v":0}]
["N","M dodávky celkem",{"$f":"Dodavka","v":0},{"$f":"Rekapitulace!A21","v":"Vytýčení stavby a podz. inženýrských sítí"},null,null,{"$f":"Rekapitulace!I21","v":0}]
["ZRN celkem",null,{"$f":"SUM(C15:C18)","v":0},{"$f":"Rekapitulace!A22","v":"Dokumentace skutečného provedení"},null,null,{"$f":"Rekapitulace!I22","v":0}]
[null,null,null,{"$f":"Rekapitulace!A23","v":"Geodetické zaměření stavby"},null,null,{"$f":"Rekapitulace!I23","v":0}]
["HZS",null,{"$f":"HZS","v":0}]
["ZRN+HZS",null,{"$f":"C19+C21","v":0}]
["ZRN+ost.náklady+HZS",null,{"$f":"C22+G23","v":0},"Ostatní náklady celkem",null,null,{"$f":"VRN","v":0}]
["Vypracoval",null,null,"Za zhotovitele",null,"Za objednatele"]
["Jméno :",null,"Jiří Vocásek","Jméno :",null,"Jméno :"]
["Datum :",null,"9. května 2018","Datum :",null,"Datum :"]
[]
["Podpis :",null,null,"Podpis:",null,"Podpis:"]
[]
["Základ pro DPH",null,21,"%  ",null,{"$f":"C23-F32","v":0}]
["DPH",null,{"$f":"SazbaDPH1","v":21},"% ",null,{"$f":"ROUND(PRODUCT(F30,C31/100),0)","v":0}]
["Základ pro DPH",null,0,"% ",null,0]
["DPH",null,{"$f":"SazbaDPH2","v":0},"% ",null,{"$f":"ROUND(PRODUCT(F32,C33/100),0)","v":0}]
["CENA ZA OBJEKT CELKEM",null,null,null,null,{"$f":"ROUND(SUM(F30:F33),0)","v":0}]
[]
["Poznámka :",null,null,null,null,null,null," "]
[null,null,null,null,null,null,null," "]
[null,null,null,null,null,null,null," "]
[null,null,null,null,null,null,null," "]
[null,null,null,null,null,null,null," "]
[null,null,null,null,null,null,null," "]
[null,null,null,null,null,null,null," "]
[null,null,null,null,null,null,null," "]
[null,null,null,null,null,null,null," "]
[null,null,null,null,null,null,null," "]

{"sheet":"Rekapitulace","index":1,"n_rows":24,"n_cols":53,"rows_kept":24,"cut":false,"hidden":false,"merged":[[0,0,0,1],[1,0,1,1],[1,6,1,8],[23,7,23,8]]}
["Stavba :",null,{"$f":"CONCATENATE(cislostavby,\" \",nazevstavby)","v":"3150 Městský park Turnov (u letního kina) - II. etapa"},null,null,null,"Rozpočet :","3150/03.2"]
["Objekt :",null,{"$f":"CONCATENATE(cisloobjektu,\" \",nazevobjektu)","v":"03.2 Komunikace"},null,null,null,"Komunikace - II etapa"]
[]
["REKAPITULACE  STAVEBNÍCH  DÍLŮ"]
[]
[null,"Stavební díl",null,null,"HSV","PSV","Dodávka","Montáž","HZS"]
[{"$f":"Položky!B7","v":"1"},{"$f":"Položky!C7","v":"Zemní práce"},null,null,{"$f":"Položky!BA55","v":0},{"$f":"Položky!BB55","v":0},{"$f":"Položky!BC55","v":0},{"$f":"Položky!BD55","v":0},{"$f":"Položky!BE55","v":0}]
[{"$f":"Položky!B56","v":"5"},{"$f":"Položky!C56","v":"Komunikace"},null,null,{"$f":"Položky!BA69","v":0},{"$f":"Položky!BB69","v":0},{"$f":"Položky!BC69","v":0},{"$f":"Položky!BD69","v":0},{"$f":"Položky!BE69","v":0}]
[{"$f":"Položky!B70","v":"91"},{"$f":"Položky!C70","v":"Doplňující práce na komunikaci"},null,null,{"$f":"Položky!BA79","v":0},{"$f":"Položky!BB79","v":0},{"$f":"Položky!BC79","v":0},{"$f":"Položky!BD79","v":0},{"$f":"Položky!BE79","v":0}]
[{"$f":"Položky!B80","v":"958"},{"$f":"Položky!C80","v":"Mobiliář"},null,null,{"$f":"Položky!BA82","v":0},{"$f":"Položky!BB82","v":0},{"$f":"Položky!BC82","v":0},{"$f":"Položky!BD82","v":0},{"$f":"Položky!BE82","v":0}]
[{"$f":"Položky!B83","v":"99"},{"$f":"Položky!C83","v":"Staveništní přesun hmot"},null,null,{"$f":"Položky!BA85","v":0},{"$f":"Položky!BB85","v":0},{"$f":"Položky!BC85","v":0},{"$f":"Položky!BD85","v":0},{"$f":"Položky!BE85","v":0}]
[{"$f":"Položky!B86","v":"M21.2"},{"$f":"Položky!C86","v":"Elektromontáře - Veřejné osvětlení"},null,null,{"$f":"Položky!BA88","v":0},{"$f":"Položky!BB88","v":0},{"$f":"Položky!BC88","v":0},{"$f":"Položky!BD88","v":0},{"$f":"Položky!BE88","v":0}]
[null,"CELKEM  OBJEKT",null,null,{"$f":"SUM(E7:E12)","v":0},{"$f":"SUM(F7:F12)","v":0},{"$f":"SUM(G7:G12)","v":0},{"$f":"SUM(H7:H12)","v":0},{"$f":"SUM(I7:I12)","v":0}]
[]
["OSTATNÍ NÁKLADY STAVBY"]
[]
["Název ONS",null,null,null,"Kč",null,null,null,"Kč"]
["Zařízení staveniště",null,null,null,0,null,null,null,{"$f":"E18+F18*G18/100","v":0},null,null,null,null,null,null,null,null,null,null,null,null,null,null,null,null,null,null,null,null,null,null,null,null,null,null,null,null,null,null,null,null,null,null,null,null,null,null,null,null,null,null,null,2]
["Provoz investora",null,null,null,0,null,null,null,0,null,null,null,null,null,null,null,null,null,null,null,null,null,null,null,null,null,null,null,null,null,null,null,null,null,null,null,null,null,null,null,null,null,null,null,null,null,null,null,null,null,null,null,1]
["Kompletační činnost (IČD)",null,null,null,0,null,null,null,0,null,null,null,null,null,null,null,null,null,null,null,null,null,null,null,null,null,null,null,null,null,null,null,null,null,null,null,null,null,null,null,null,null,null,null,null,null,null,null,null,null,null,null,2]
["Vytýčení stavby a podz. inženýrských sítí",null,null,null,0,null,null,null,0,null,null,null,null,null,null,null,null,null,null,null,null,null,null,null,null,null,null,null,null,null,null,null,null,null,null,null,null,null,null,null,null,null,null,null,null,null,null,null,null,null,null,null,0]
["Dokumentace skutečného provedení",null,null,null,0,null,null,null,0,null,null,null,null,null,null,null,null,null,null,null,null,null,null,null,null,null,null,null,null,null,null,null,null,null,null,null,null,null,null,null,null,null,null,null,null,null,null,null,null,null,null,null,0]
["Geodetické zaměření stavby",null,null,null,0,null,null,null,0,null,null,null,null,null,null,null,null,null,null,null,null,null,null,null,null,null,null,null,null,null,null,null,null,null,null,null,null,null,null,null,null,null,null,null,null,null,null,null,null,null,null,null,0]
[null,"CELKEM ONS",null,null,null,null,null,{"$f":"SUM(I18:I23)","v":0}]

{"sheet":"Položky","index":2,"n_rows":88,"n_cols":104,"rows_kept":88,"cut":false,"hidden":false,"merged":[[25,2,25,3],[0,0,0,6],[2,0,2,1],[3,0,3,1],[3,4,3,6],[8,2,8,3],[10,2,10,3],[12,2,12,3],[14,2,14,3],[16,2,16,3],[18,2,18,3],[20,2,20,3],[21,2,21,3],[23,2,23,3],[44,2,44,3],[27,2,27,3],[28,2,28,3],[30,2,30,3],[32,2,32,3],[33,2,33,3],[35,2,35,3],[37,2,37,3],[38,2,38,3],[40,2,40,3],[41,2,41,3],[43,2,43,6],[75,2,75,3],[77,2,77,3],[45,2,45,3],[47,2,47,3],[49,2,49,3],[50,2,50,3],[57,2,57,3],[59,2,59,3],[61,2,61,6],[62,2,62,3],[64,2,64,6],[65,2,65,6],[67,2,67,3],[71,2,71,3],[73,2,73,3]]}
["Položkový rozpočet "]
[]
["Stavba :",null,{"$f":"CONCATENATE(cislostavby,\" \",nazevstavby)","v":"3150 Městský park Turnov (u letního kina) - II. etapa"},null,"Rozpočet:",{"$f":"Rekapitulace!H1","v":"3150/03.2"}]
["Objekt :",null,{"$f":"CONCATENATE(cisloobjektu,\" \",nazevobjektu)","v":"03.2 Komunikace"},null,{"$f":"Rekapitulace!G2","v":"Komunikace - II etapa"}]
[]
["P.č.","Číslo položky","Název položky","MJ","množství","cena / MJ","celkem (Kč)"]
["Díl:","1","Zemní práce",null,null,null,null,null,null,null,null,null,null,null,1]
[1,"113107616R00","Odstranění podkladu nad 50 m2,kam.drcené tl.16 cm ","m2",63.624000000000002,null,{"$f":"E8*F8","v":0},null,null,null,null,null,null,null,2,null,null,null,null,null,null,null,null,null,null,null,1,1,1,null,null,null,null,null,null,null,null,null,null,null,null,null,null,null,null,null,null,null,null,null,null,1,{"$f":"IF(AZ8=1,G8,0)","v":0},{"$f":"IF(AZ8=2,G8,0)","v":0},{"$f":"IF(AZ8=3,G8,0)","v":0},{"$f":"IF(AZ8=4,G8,0)","v":0},{"$f":"IF(AZ8=5,G8,0)","v":0},null,null,null,null,null,null,null,null,null,null,null,null,null,null,null,null,null,null,null,null,null,1,1,null,null,null,null,null,null,null,null,null,null,null,null,null,null,null,null,null,null,null,null,null,null,null,0]
[null,null,"Celkové plochy stávajících komunikací v parku - asfalt z 6%:1060,40*0,06",null,63.624000000000002,null,null,null,null,null,null,null,"Celkové plochy stávajících komunikací v parku - asfalt z 6%:1060,40*0,06"]
[2,"113107618R00","Odstranění podkladu nad 50 m2,kam.drcené tl.18 cm ","m2",848.32,null,{"$f":"E10*F10","v":0},null,null,null,null,null,null,null,2,null,null,null,null,null,null,null,null,null,null,null,1,1,1,null,null,null,null,null,null,null,null,null,null,null,null,null,null,null,null,null,null,null,null,null,null,1,{"$f":"IF(AZ10=1,G10,0)","v":0},{"$f":"IF(AZ10=2,G10,0)","v":0},{"$f":"IF(AZ10=3,G10,0)","v":0},{"$f":"IF(AZ10=4,G10,0)","v":0},{"$f":"IF(AZ10=5,G10,0)","v":0},null,null,null,null,null,null,null,null,null,null,null,null,null,null,null,null,null,null,null,null,null,1,1,null,null,null,null,null,null,null,null,null,null,null,null,null,null,null,null,null,null,null,null,null,null,null,0]
[null,null,"Celkové plochy stávajících komunikací v parku - asfalt z 80%:1060,40*0,8",null,848.32,null,null,null,null,null,null,null,"Celkové plochy stávajících komunikací v parku - asfalt z 80%:1060,40*0,8"]
[3,"113107626R00","Odstranění podkladu nad 50 m2,kam.drcené tl.26 cm ","m2",148.45599999999999,null,{"$f":"E12*F12","v":0},null,null,null,null,null,null,null,2,null,null,null,null,null,null,null,null,null,null,null,1,1,1,null,null,null,null,null,null,null,null,null,null,null,null,null,null,null,null,null,null,null,null,null,null,1,{"$f":"IF(AZ12=1,G12,0)","v":0},{"$f":"IF(AZ12=2,G12,0)","v":0},{"$f":"IF(AZ12=3,G12,0)","v":0},{"$f":"IF(AZ12=4,G12,0)","v":0},{"$f":"IF(AZ12=5,G12,0)","v":0},null,null,null,null,null,null,null,null,null,null,null,null,null,null,null,null,null,null,null,null,null,1,1,null,null,null,null,null,null,null,null,null,null,null,null,null,null,null,null,null,null,null,null,null,null,null,0]
[null,null,"Celkové plochy stávajících komunikací v parku - asfalt z 14%:1060,40*0,14",null,148.45599999999999,null,null,null,null,null,null,null,"Celkové plochy stávajících komunikací v parku - asfalt z 14%:1060,40*0,14"]
[4,"113108408R00","Odstranění podkladu pl. nad 50 m2, živice tl.8 cm ","m2",848.32,null,{"$f":"E14*F14","v":0},null,null,null,null,null,null,null,2,null,null,null,null,null,null,null,null,null,null,null,1,1,1,null,null,null,null,null,null,null,null,null,null,null,null,null,null,null,null,null,null,null,null,null,null,1,{"$f":"IF(AZ14=1,G14,0)","v":0},{"$f":"IF(AZ14=2,G14,0)","v":0},{"$f":"IF(AZ14=3,G14,0)","v":0},{"$f":"IF(AZ14=4,G14,0)","v":0},{"$f":"IF(AZ14=5,G14,0)","v":0},null,null,null,null,null,null,null,null,null,null,null,null,null,null,null,null,null,null,null,null,null,1,1,null,null,null,null,null,null,null,null,null,null,null,null,null,null,null,null,null,null,null,null,null,null,null,0]
[null,null,"Celkové plochy stávajících komunikací v parku - asfalt z 80%:1060,40*0,8",null,848.32,null,null,null,null,null,null,null,"Celkové plochy stávajících komunikací v parku - asfalt z 80%:1060,40*0,8"]
[5,"113109410R00","Odstranění podkladu pl.nad 50 m2, beton, tl. 10 cm ","m2",63.624000000000002,null,{"$f":"E16*F16","v":0},null,null,null,null,null,null,null,2,null,null,null,null,null,null,null,null,null,null,null,1,1,1,null,null,null,null,null,null,null,null,null,null,null,null,null,null,null,null,null,null,null,null,null,null,1,{"$f":"IF(AZ16=1,G16,0)","v":0},{"$f":"IF(AZ16=2,G16,0)","v":0},{"$f":"IF(AZ16=3,G16,0)","v":0},{"$f":"IF(AZ16=4,G16,0)","v":0},{"$f":"IF(AZ16=5,G16,0)","v":0},null,null,null,null,null,null,null,null,null,null,null,null,null,null,null,null,null,null,null,null,null,1,1,null,null,null,null,null,null,null,null,null,null,null,null,null,null,null,null,null,null,null,null,null,null,null,0]
[null,null,"Celkové plochy stávajících komunikací v parku - asfalt z 6%:1060,40*0,06",null,63.624000000000002,null,null,null,null,null,null,null,"Celkové plochy stávajících komunikací v parku - asfalt z 6%:1060,40*0,06"]
[6,"113151114R00","Fréz.živič.krytu pl.do 500 m2,pruh do 75 cm,tl.5cm ","m2",70,null,{"$f":"E18*F18","v":0},null,null,null,null,null,null,null,2,null,null,null,null,null,null,null,null,null,null,null,1,1,1,null,null,null,null,null,null,null,null,null,null,null,null,null,null,null,null,null,null,null,null,null,null,1,{"$f":"IF(AZ18=1,G18,0)","v":0},{"$f":"IF(AZ18=2,G18,0)","v":0},{"$f":"IF(AZ18=3,G18,0)","v":0},{"$f":"IF(AZ18=4,G18,0)","v":0},{"$f":"IF(AZ18=5,G18,0)","v":0},null,null,null,null,null,null,null,null,null,null,null,null,null,null,null,null,null,null,null,null,null,1,1,null,null,null,null,null,null,null,null,null,null,null,null,null,null,null,null,null,null,null,null,null,null,null,0]
[null,null,"Plocha u vjezdu do parku:70,00",null,70,null,null,null,null,null,null,null,"Plocha u vjezdu do parku:70,00"]
[7,"122101401RRX","Vykopávky v zemníku v hor. 2 do 100 m3 ornice na skládce investora","m3",32.1,null,{"$f":"E20*F20","v":0},null,null,null,null,null,null,null,2,null,null,null,null,null,null,null,null,null,null,null,1,1,1,null,null,null,null,null,null,null,null,null,null,null,null,null,null,null,null,null,null,null,null,null,null,1,{"$f":"IF(AZ20=1,G20,0)","v":0},{"$f":"IF(AZ20=2,G20,0)","v":0},{"$f":"IF(AZ20=3,G20,0)","v":0},{"$f":"IF(AZ20=4,G20,0)","v":0},{"$f":"IF(AZ20=5,G20,0)","v":0},null,null,null,null,null,null,null,null,null,null,null,null,null,null,null,null,null,null,null,null,null,1,1,null,null,null,null,null,null,null,null,null,null,null,null,null,null,null,null,null,null,null,null,null,null,null,0]
[null,null,"Podél nových obrub:630,00*0,10*0,25",null,15.75,null,null,null,null,null,null,null,"Podél nových obrub:630,00*0,10*0,25"]
[null,null,"Doplnění po odstranění stáv. konstrukcí u \"Středové cesty\":65,40*0,25",null,16.350000000000001,null,null,null,null,null,null,null,"Doplnění po odstranění stáv. konstrukcí u \"Středové cesty\":65,40*0,25"]
[8,"122202201R00","Odkopávky pro silnice v hor. 3 do 100 m3 ","m3",78.599999999999994,null,{"$f":"E23*F23","v":0},null,null,null,null,null,null,null,2,null,null,null,null,null,null,null,null,null,null,null,1,1,1,null,null,null,null,null,null,null,null,null,null,null,null,null,null,null,null,null,null,null,null,null,null,1,{"$f":"IF(AZ23=1,G23,0)","v":0},{"$f":"IF(AZ23=2,G23,0)","v":0},{"$f":"IF(AZ23=3,G23,0)","v":0},{"$f":"IF(AZ23=4,G23,0)","v":0},{"$f":"IF(AZ23=5,G23,0)","v":0},null,null,null,null,null,null,null,null,null,null,null,null,null,null,null,null,null,null,null,null,null,1,1,null,null,null,null,null,null,null,null,null,null,null,null,null,null,null,null,null,null,null,null,null,null,null,0]
[null,null,"Celkové plochy nových komunikací v parku s rozšířením pro osazení žulových obrub do betonu:995,00*0,06+630,00*0,10*0,30",null,78.599999999999994,null,null,null,null,null,null,null,"Celkové plochy nových komunikací v parku s rozšířením pro osazení žulových obrub do betonu:995,00*0,06+630,00*0,10*0,30"]
[9,"122202209R00","Příplatek za lepivost - odkop. pro silnice v hor.3 ","m3",78.599999999999994,null,{"$f":"E25*F25","v":0},null,null,null,null,null,null,null,2,null,null,null,null,null,null,null,null,null,null,null,1,1,1,null,null,null,null,null,null,null,null,null,null,null,null,null,null,null,null,null,null,null,null,null,null,1,{"$f":"IF(AZ25=1,G25,0)","v":0},{"$f":"IF(AZ25=2,G25,0)","v":0},{"$f":"IF(AZ25=3,G25,0)","v":0},{"$f":"IF(AZ25=4,G25,0)","v":0},{"$f":"IF(AZ25=5,G25,0)","v":0},null,null,null,null,null,null,null,null,null,null,null,null,null,null,null,null,null,null,null,null,null,1,1,null,null,null,null,null,null,null,null,null,null,null,null,null,null,null,null,null,null,null,null,null,null,null,0]
[null,null,"Celkové plochy nových komunikací v parku s rozšířením pro osazení žulových obrub do betonu:995,00*0,06+630,00*0,10*0,30",null,78.599999999999994,null,null,null,null,null,null,null,"Celkové plochy nových komunikací v parku s rozšířením pro osazení žulových obrub do betonu:995,00*0,06+630,00*0,10*0,30"]
[10,"162601102R00","Vodorovné přemístění výkopku z hor.1-4 do 5000 m Ornice ze skládky investora","m3",32.1,null,{"$f":"E27*F27","v":0},null,null,null,null,null,null,null,2,null,null,null,null,null,null,null,null,null,null,null,1,1,1,null,null,null,null,null,null,null,null,null,null,null,null,null,null,null,null,null,null,null,null,null,null,1,{"$f":"IF(AZ27=1,G27,0)","v":0},{"$f":"IF(AZ27=2,G27,0)","v":0},{"$f":"IF(AZ27=3,G27,0)","v":0},{"$f":"IF(AZ27=4,G27,0)","v":0},{"$f":"IF(AZ27=5,G27,0)","v":0},null,null,null,null,null,null,null,null,null,null,null,null,null,null,null,null,null,null,null,null,null,1,1,null,null,null,null,null,null,null,null,null,null,null,null,null,null,null,null,null,null,null,null,null,null,null,0]
[null,null,"Podél nových obrub:630,00*0,10*0,25",null,15.75,null,null,null,null,null,null,null,"Podél nových obrub:630,00*0,10*0,25"]
[null,null,"Doplnění po odstranění stáv. konstrukcí u \"Středové cesty\":65,40*0,25",null,16.350000000000001,null,null,null,null,null,null,null,"Doplnění po odstranění stáv. konstrukcí u \"Středové cesty\":65,40*0,25"]
[11,"162601102RRX","Vodorovné přemístění výkopku z hor.1-4 na skládku zhotovitele","m3",78.599999999999994,null,{"$f":"E30*F30","v":0},null,null,null,null,null,null,null,2,null,null,null,null,null,null,null,null,null,null,null,1,1,1,null,null,null,null,null,null,null,null,null,null,null,null,null,null,null,null,null,null,null,null,null,null,1,{"$f":"IF(AZ30=1,G30,0)","v":0},{"$f":"IF(AZ30=2,G30,0)","v":0},{"$f":"IF(AZ30=3,G30,0)","v":0},{"$f":"IF(AZ30=4,G30,0)","v":0},{"$f":"IF(AZ30=5,G30,0)","v":0},null,null,null,null,null,null,null,null,null,null,null,null,null,null,null,null,null,null,null,null,null,1,1,null,null,null,null,null,null,null,null,null,null,null,null,null,null,null,null,null,null,null,null,null,null,null,0]
[null,null,"Celkové plochy nových komunikací v parku s rozšířením pro osazení žulových obrub do betonu:995,00*0,06+630,00*0,10*0,30",null,78.599999999999994,null,null,null,null,null,null,null,"Celkové plochy nových komunikací v parku s rozšířením pro osazení žulových obrub do betonu:995,00*0,06+630,00*0,10*0,30"]
[12,"180402111R00","Založení trávníku parkového výsevem v rovině ","m2",128.4,null,{"$f":"E32*F32","v":0},null,null,null,null,null,null,null,2,null,null,null,null,null,null,null,null,null,null,null,1,1,1,null,null,null,null,null,null,null,null,null,null,null,null,null,null,null,null,null,null,null,null,null,null,1,{"$f":"IF(AZ32=1,G32,0)","v":0},{"$f":"IF(AZ32=2,G32,0)","v":0},{"$f":"IF(AZ32=3,G32,0)","v":0},{"$f":"IF(AZ32=4,G32,0)","v":0},{"$f":"IF(AZ32=5,G32,0)","v":0},null,null,null,null,null,null,null,null,null,null,null,null,null,null,null,null,null,null,null,null,null,1,1,null,null,null,null,null,null,null,null,null,null,null,null,null,null,null,null,null,null,null,null,null,null,null,0]
[null,null,"Podél nových obrub:630,00*0,10",null,63,null,null,null,null,null,null,null,"Podél nových obrub:630,00*0,10"]
[null,null,"Doplnění po odstranění stáv. konstrukcí u \"Středové cesty\":65,40",null,65.400000000000006,null,null,null,null,null,null,null,"Doplnění po odstranění stáv. konstrukcí u \"Středové cesty\":65,40"]
[13,"181101102R00","Úprava pláně v zářezech v hor. 1-4, se zhutněním ","m2",1058,null,{"$f":"E35*F35","v":0},null,null,null,null,null,null,null,2,null,null,null,null,null,null,null,null,null,null,null,1,1,1,null,null,null,null,null,null,null,null,null,null,null,null,null,null,null,null,null,null,null,null,null,null,1,{"$f":"IF(AZ35=1,G35,0)","v":0},{"$f":"IF(AZ35=2,G35,0)","v":0},{"$f":"IF(AZ35=3,G35,0)","v":0},{"$f":"IF(AZ35=4,G35,0)","v":0},{"$f":"IF(AZ35=5,G35,0)","v":0},null,null,null,null,null,null,null,null,null,null,null,null,null,null,null,null,null,null,null,null,null,1,1,null,null,null,null,null,null,null,null,null,null,null,null,null,null,null,null,null,null,null,null,null,null,null,0]
[null,null,"Celkové plochy nových komunikací v parku s rozšířením pro osazení žulových obrub do betonu:995,00+630,00*0,10",null,1058,null,null,null,null,null,null,null,"Celkové plochy nových komunikací v parku s rozšířením pro osazení žulových obrub do betonu:995,00+630,00*0,10"]
[14,"181301104R00","Rozprostření ornice, rovina, tl. 20-25 cm,do 500m2 ","m2",128.4,null,{"$f":"E37*F37","v":0},null,null,null,null,null,null,null,2,null,null,null,null,null,null,null,null,null,null,null,1,1,1,null,null,null,null,null,null,null,null,null,null,null,null,null,null,null,null,null,null,null,null,null,null,1,{"$f":"IF(AZ37=1,G37,0)","v":0},{"$f":"IF(AZ37=2,G37,0)","v":0},{"$f":"IF(AZ37=3,G37,0)","v":0},{"$f":"IF(AZ37=4,G37,0)","v":0},{"$f":"IF(AZ37=5,G37,0)","v":0},null,null,null,null,null,null,null,null,null,null,null,null,null,null,null,null,null,null,null,null,null,1,1,null,null,null,null,null,null,null,null,null,null,null,null,null,null,null,null,null,null,null,null,null,null,null,0]
[null,null,"Podél nových obrub:630,00*0,10",null,63,null,null,null,null,null,null,null,"Podél nových obrub:630,00*0,10"]
[null,null,"Doplnění po odstranění stáv. konstrukcí u \"Středové cesty\":65,40",null,65.400000000000006,null,null,null,null,null,null,null,"Doplnění po odstranění stáv. konstrukcí u \"Středové cesty\":65,40"]
[15,"183403153R00","Obdělání půdy hrabáním, v rovině ","m2",128.4,null,{"$f":"E40*F40","v":0},null,null,null,null,null,null,null,2,null,null,null,null,null,null,null,null,null,null,null,1,1,1,null,null,null,null,null,null,null,null,null,null,null,null,null,null,null,null,null,null,null,null,null,null,1,{"$f":"IF(AZ40=1,G40,0)","v":0},{"$f":"IF(AZ40=2,G40,0)","v":0},{"$f":"IF(AZ40=3,G40,0)","v":0},{"$f":"IF(AZ40=4,G40,0)","v":0},{"$f":"IF(AZ40=5,G40,0)","v":0},null,null,null,null,null,null,null,null,null,null,null,null,null,null,null,null,null,null,null,null,null,1,1,null,null,null,null,null,null,null,null,null,null,null,null,null,null,null,null,null,null,null,null,null,null,null,0]
[null,null,"Podél nových obrub:630,00*0,10",null,63,null,null,null,null,null,null,null,"Podél nových obrub:630,00*0,10"]
[null,null,"Doplnění po odstranění stáv. konstrukcí u \"Středové cesty\":65,40",null,65.400000000000006,null,null,null,null,null,null,null,"Doplnění po odstranění stáv. konstrukcí u \"Středové cesty\":65,40"]
[16,"184802111R00","Chem. odplevelení před založ. postřikem, v rovině ","m2",128.4,null,{"$f":"E43*F43","v":0},null,null,null,null,null,null,null,2,null,null,null,null,null,null,null,null,null,null,null,1,1,1,null,null,null,null,null,null,null,null,null,null,null,null,null,null,null,null,null,null,null,null,null,null,1,{"$f":"IF(AZ43=1,G43,0)","v":0},{"$f":"IF(AZ43=2,G43,0)","v":0},{"$f":"IF(AZ43=3,G43,0)","v":0},{"$f":"IF(AZ43=4,G43,0)","v":0},{"$f":"IF(AZ43=5,G43,0)","v":0},null,null,null,null,null,null,null,null,null,null,null,null,null,null,null,null,null,null,null,null,null,1,1,null,null,null,null,null,null,null,null,null,null,null,null,null,null,null,null,null,null,null,null,null,null,null,0]
[null,null,"Včetně dovozu vody do 10 km.",null,null,null,null,null,null,null,null,"Včetně dovozu vody do 10 km.",null,null,3]
[null,null,"Podél nových obrub:630,00*0,10",null,63,null,null,null,null,null,null,null,"Podél nových obrub:630,00*0,10"]
[null,null,"Doplnění po odstranění stáv. konstrukcí u \"Středové cesty\":65,40",null,65.400000000000006,null,null,null,null,null,null,null,"Doplnění po odstranění stáv. konstrukcí u \"Středové cesty\":65,40"]
[17,"199000002R00","Poplatek za skládku horniny 1- 4 ","m3",78.599999999999994,null,{"$f":"E47*F47","v":0},null,null,null,null,null,null,null,2,null,null,null,null,null,null,null,null,null,null,null,1,1,1,null,null,null,null,null,null,null,null,null,null,null,null,null,null,null,null,null,null,null,null,null,null,1,{"$f":"IF(AZ47=1,G47,0)","v":0},{"$f":"IF(AZ47=2,G47,0)","v":0},{"$f":"IF(AZ47=3,G47,0)","v":0},{"$f":"IF(AZ47=4,G47,0)","v":0},{"$f":"IF(AZ47=5,G47,0)","v":0},null,null,null,null,null,null,null,null,null,null,null,null,null,null,null,null,null,null,null,null,null,1,1,null,null,null,null,null,null,null,null,null,null,null,null,null,null,null,null,null,null,null,null,null,null,null,0]
[null,null,"Celkové plochy nových komunikací v parku s rozšířením pro osazení žulových obrub do betonu:995,00*0,06+630,00*0,10*0,30",null,78.599999999999994,null,null,null,null,null,null,null,"Celkové plochy nových komunikací v parku s rozšířením pro osazení žulových obrub do betonu:995,00*0,06+630,00*0,10*0,30"]
[18,"00572400","Směs travní parková I. běžná zátěž PROFI","kg",3.5310000000000001,null,{"$f":"E49*F49","v":0},null,null,null,null,null,null,null,2,null,null,null,null,null,null,null,null,null,null,null,3,1,572400,null,null,null,null,null,null,null,null,null,null,null,null,null,null,null,null,null,null,null,null,null,null,1,{"$f":"IF(AZ49=1,G49,0)","v":0},{"$f":"IF(AZ49=2,G49,0)","v":0},{"$f":"IF(AZ49=3,G49,0)","v":0},{"$f":"IF(AZ49=4,G49,0)","v":0},{"$f":"IF(AZ49=5,G49,0)","v":0},null,null,null,null,null,null,null,null,null,null,null,null,null,null,null,null,null,null,null,null,null,3,1,null,null,null,null,null,null,null,null,null,null,null,null,null,null,null,null,null,null,null,null,null,null,null,1E-3]
[null,null,"Podél nových obrub:630,00*0,10*0,025*1,1",null,1.7324999999999999,null,null,null,null,null,null,null,"Podél nových obrub:630,00*0,10*0,025*1,1"]
[null,null,"Doplnění po odstranění stáv. konstrukcí u \"Středové cesty\":65,40*0,025*1,1",null,1.7985,null,null,null,null,null,null,null,"Doplnění po odstranění stáv. konstrukcí u \"Středové cesty\":65,40*0,025*1,1"]
[19,"111_11VD","Dlouhodobě působící granulované trávníkové hnojivo (0,03kg/m2), včetně aplikace","kg",3.95,null,{"$f":"E52*F52","v":0},null,null,null,null,null,null,null,2,null,null,null,null,null,null,null,null,null,null,null,3,1,"111_11VD",null,null,null,null,null,null,null,null,null,null,null,null,null,null,null,null,null,null,null,null,null,null,1,{"$f":"IF(AZ52=1,G52,0)","v":0},{"$f":"IF(AZ52=2,G52,0)","v":0},{"$f":"IF(AZ52=3,G52,0)","v":0},{"$f":"IF(AZ52=4,G52,0)","v":0},{"$f":"IF(AZ52=5,G52,0)","v":0},null,null,null,null,null,null,null,null,null,null,null,null,null,null,null,null,null,null,null,null,null,3,1,null,null,null,null,null,null,null,null,null,null,null,null,null,null,null,null,null,null,null,null,null,null,null,0]
[20,"979082213R01","Vodorovná doprava suti na skládku zhotovitele (štěrky, asfalt, beton)","t",612.02128000000005,null,{"$f":"E53*F53","v":0},null,null,null,null,null,null,null,2,null,null,null,null,null,null,null,null,null,null,null,8,1,3,null,null,null,null,null,null,null,null,null,null,null,null,null,null,null,null,null,null,null,null,null,null,1,{"$f":"IF(AZ53=1,G53,0)","v":0},{"$f":"IF(AZ53=2,G53,0)","v":0},{"$f":"IF(AZ53=3,G53,0)","v":0},{"$f":"IF(AZ53=4,G53,0)","v":0},{"$f":"IF(AZ53=5,G53,0)","v":0},null,null,null,null,null,null,null,null,null,null,null,null,null,null,null,null,null,null,null,null,null,8,1,null,null,null,null,null,null,null,null,null,null,null,null,null,null,null,null,null,null,null,null,null,null,null,0]
[21,"979990112R01","Poplatek za skládku suti (štěrky, asfalt, beton) ","t",612.02128000000005,null,{"$f":"E54*F54","v":0},null,null,null,null,null,null,null,2,null,null,null,null,null,null,null,null,null,null,null,8,1,3,null,null,null,null,null,null,null,null,null,null,null,null,null,null,null,null,null,null,null,null,null,null,1,{"$f":"IF(AZ54=1,G54,0)","v":0},{"$f":"IF(AZ54=2,G54,0)","v":0},{"$f":"IF(AZ54=3,G54,0)","v":0},{"$f":"IF(AZ54=4,G54,0)","v":0},{"$f":"IF(AZ54=5,G54,0)","v":0},null,null,null,null,null,null,null,null,null,null,null,null,null,null,null,null,null,null,null,null,null,8,1,null,null,null,null,null,null,null,null,null,null,null,null,null,null,null,null,null,null,null,null,null,null,null,0]
[null,"Celkem za",{"$f":"CONCATENATE(B7,\" \",C7)","v":"1 Zemní práce"},null,null,null,{"$f":"SUM(G7:G54)","v":0},null,null,null,null,null,null,null,4,null,null,null,null,null,null,null,null,null,null,null,null,null,null,null,null,null,null,null,null,null,null,null,null,null,null,null,null,null,null,null,null,null,null,null,null,null,{"$f":"SUM(BA7:BA54)","v":0},{"$f":"SUM(BB7:BB54)","v":0},{"$f":"SUM(BC7:BC54)","v":0},{"$f":"SUM(BD7:BD54)","v":0},{"$f":"SUM(BE7:BE54)","v":0}]
["Díl:","5","Komunikace",null,null,null,null,null,null,null,null,null,null,null,1]
[22,"573231111R00","Postřik živičný spojovací z emulze 0,5-0,7 kg/m2 ","m2",70,null,{"$f":"E57*F57","v":0},null,null,null,null,null,null,null,2,null,null,null,null,null,null,null,null,null,null,null,1,1,1,null,null,null,null,null,null,null,null,null,null,null,null,null,null,null,null,null,null,null,null,null,null,1,{"$f":"IF(AZ57=1,G57,0)","v":0},{"$f":"IF(AZ57=2,G57,0)","v":0},{"$f":"IF(AZ57=3,G57,0)","v":0},{"$f":"IF(AZ57=4,G57,0)","v":0},{"$f":"IF(AZ57=5,G57,0)","v":0},null,null,null,null,null,null,null,null,null,null,null,null,null,null,null,null,null,null,null,null,null,1,1,null,null,null,null,null,null,null,null,null,null,null,null,null,null,null,null,null,null,null,null,null,null,null,7.1000000000000002E-4]
[null,null,"Plocha u vjezdu do parku:70,00",null,70,null,null,null,null,null,null,null,"Plocha u vjezdu do parku:70,00"]
[23,"577141312R00","Beton asfalt.ACO 11, do 3 m, 5 cm ","m2",70,null,{"$f":"E59*F59","v":0},null,null,null,null,null,null,null,2,null,null,null,null,null,null,null,null,null,null,null,1,1,1,null,null,null,null,null,null,null,null,null,null,null,null,null,null,null,null,null,null,null,null,null,null,1,{"$f":"IF(AZ59=1,G59,0)","v":0},{"$f":"IF(AZ59=2,G59,0)","v":0},{"$f":"IF(AZ59=3,G59,0)","v":0},{"$f":"IF(AZ59=4,G59,0)","v":0},{"$f":"IF(AZ59=5,G59,0)","v":0},null,null,null,null,null,null,null,null,null,null,null,null,null,null,null,null,null,null,null,null,null,1,1,null,null,null,null,null,null,null,null,null,null,null,null,null,null,null,null,null,null,null,null,null,null,null,0.12715000000000001]
[null,null,"Plocha u vjezdu do parku:70,00",null,70,null,null,null,null,null,null,null,"Plocha u vjezdu do parku:70,00"]
[24,"591211111RRX","Kladení dlažby z žulových odseků lože z kamen.tl. 5 cm","m2",995,null,{"$f":"E61*F61","v":0},null,null,null,null,null,null,null,2,null,null,null,null,null,null,null,null,null,null,null,1,1,1,null,null,null,null,null,null,null,null,null,null,null,null,null,null,null,null,null,null,null,null,null,null,1,{"$f":"IF(AZ61=1,G61,0)","v":0},{"$f":"IF(AZ61=2,G61,0)","v":0},{"$f":"IF(AZ61=3,G61,0)","v":0},{"$f":"IF(AZ61=4,G61,0)","v":0},{"$f":"IF(AZ61=5,G61,0)","v":0},null,null,null,null,null,null,null,null,null,null,null,null,null,null,null,null,null,null,null,null,null,1,1,null,null,null,null,null,null,null,null,null,null,null,null,null,null,null,null,null,null,null,null,null,null,null,0.11]
[null,null,"V položce jsou zakalkulovány i náklady na dodání hmot pro lože a na dodání téhož materiálu na výplň spár. ",null,null,null,null,null,null,null,null,"V položce jsou zakalkulovány i náklady na dodání hmot pro lože a na dodání téhož materiálu na výplň spár. ",null,null,3]
[null,null,"Celkové plochy nových komunikací v parku:995,00",null,995,null,null,null,null,null,null,null,"Celkové plochy nových komunikací v parku:995,00"]
[25,"597091111RRX","Žlab odvodňovací š.100 dl. 4000 mm s litinovou mřížkou nosnost D400","soubor",1,null,{"$f":"E64*F64","v":0},null,null,null,null,null,null,null,2,null,null,null,null,null,null,null,null,null,null,null,1,1,1,null,null,null,null,null,null,null,null,null,null,null,null,null,null,null,null,null,null,null,null,null,null,1,{"$f":"IF(AZ64=1,G64,0)","v":0},{"$f":"IF(AZ64=2,G64,0)","v":0},{"$f":"IF(AZ64=3,G64,0)","v":0},{"$f":"IF(AZ64=4,G64,0)","v":0},{"$f":"IF(AZ64=5,G64,0)","v":0},null,null,null,null,null,null,null,null,null,null,null,null,null,null,null,null,null,null,null,null,null,1,1,null,null,null,null,null,null,null,null,null,null,null,null,null,null,null,null,null,null,null,null,null,null,null,0.50248999999999999]
[null,null,"Součástí položky je i napojení na stávající kanalizaci",null,null,null,null,null,null,null,null,"Součástí položky je i napojení na stávající kanalizaci",null,null,3]
[null,null,"Položka je určena pro montáž a dodávku odvodňovacího žlabu z polymerického betonu s litinovou mřížkou včetně osazení žlabu do betonového lože. ",null,null,null,null,null,null,null,null,"Položka je určena pro montáž a dodávku odvodňovacího žlabu z polymerického betonu s litinovou mřížkou včetně osazení žlabu do betonového lože. ",null,null,3]
[26,"58380120","Kostka dlažební z odseků žulová šípaná 8/10","T",202.98,null,{"$f":"E67*F67","v":0},null,null,null,null,null,null,null,2,null,null,null,null,null,null,null,null,null,null,null,3,1,58380120,null,null,null,null,null,null,null,null,null,null,null,null,null,null,null,null,null,null,null,null,null,null,1,{"$f":"IF(AZ67=1,G67,0)","v":0},{"$f":"IF(AZ67=2,G67,0)","v":0},{"$f":"IF(AZ67=3,G67,0)","v":0},{"$f":"IF(AZ67=4,G67,0)","v":0},{"$f":"IF(AZ67=5,G67,0)","v":0},null,null,null,null,null,null,null,null,null,null,null,null,null,null,null,null,null,null,null,null,null,3,1,null,null,null,null,null,null,null,null,null,null,null,null,null,null,null,null,null,null,null,null,null,null,null,1]
[null,null,"Celkové plochy nových komunikací v parku:995,00/5,0*1,02",null,202.98,null,null,null,null,null,null,null,"Celkové plochy nových komunikací v parku:995,00/5,0*1,02"]
[null,"Celkem za",{"$f":"CONCATENATE(B56,\" \",C56)","v":"5 Komunikace"},null,null,null,{"$f":"SUM(G56:G68)","v":0},null,null,null,null,null,null,null,4,null,null,null,null,null,null,null,null,null,null,null,null,null,null,null,null,null,null,null,null,null,null,null,null,null,null,null,null,null,null,null,null,null,null,null,null,null,{"$f":"SUM(BA56:BA68)","v":0},{"$f":"SUM(BB56:BB68)","v":0},{"$f":"SUM(BC56:BC68)","v":0},{"$f":"SUM(BD56:BD68)","v":0},{"$f":"SUM(BE56:BE68)","v":0}]
["Díl:","91","Doplňující práce na komunikaci",null,null,null,null,null,null,null,null,null,null,null,1]
[27,"917161111R00","Osazení obrub.kamen. s opěrou, lože z BP 12,5 ","m",630,null,{"$f":"E71*F71","v":0},null,null,null,null,null,null,null,2,null,null,null,null,null,null,null,null,null,null,null,1,1,1,null,null,null,null,null,null,null,null,null,null,null,null,null,null,null,null,null,null,null,null,null,null,1,{"$f":"IF(AZ71=1,G71,0)","v":0},{"$f":"IF(AZ71=2,G71,0)","v":0},{"$f":"IF(AZ71=3,G71,0)","v":0},{"$f":"IF(AZ71=4,G71,0)","v":0},{"$f":"IF(AZ71=5,G71,0)","v":0},null,null,null,null,null,null,null,null,null,null,null,null,null,null,null,null,null,null,null,null,null,1,1,null,null,null,null,null,null,null,null,null,null,null,null,null,null,null,null,null,null,null,null,null,null,null,0.18806]
[null,null,"Lemování dlážděných cest v jedné úrovni:630,00",null,630,null,null,null,null,null,null,null,"Lemování dlážděných cest v jedné úrovni:630,00"]
[28,"919731122R00","Zarovnání styčné plochy živičné tl. do 10 cm ","m",42,null,{"$f":"E73*F73","v":0},null,null,null,null,null,null,null,2,null,null,null,null,null,null,null,null,null,null,null,1,1,1,null,null,null,null,null,null,null,null,null,null,null,null,null,null,null,null,null,null,null,null,null,null,1,{"$f":"IF(AZ73=1,G73,0)","v":0},{"$f":"IF(AZ73=2,G73,0)","v":0},{"$f":"IF(AZ73=3,G73,0)","v":0},{"$f":"IF(AZ73=4,G73,0)","v":0},{"$f":"IF(AZ73=5,G73,0)","v":0},null,null,null,null,null,null,null,null,null,null,null,null,null,null,null,null,null,null,null,null,null,1,1,null,null,null,null,null,null,null,null,null,null,null,null,null,null,null,null,null,null,null,null,null,null,null,0]
[null,null,"Pro napojení na stávající komunikace:12,00+30,00",null,42,null,null,null,null,null,null,null,"Pro napojení na stávající komunikace:12,00+30,00"]
[29,"919735112R00","Řezání stávajícího živičného krytu tl. 5 - 10 cm ","m",12,null,{"$f":"E75*F75","v":0},null,null,null,null,null,null,null,2,null,null,null,null,null,null,null,null,null,null,null,1,1,1,null,null,null,null,null,null,null,null,null,null,null,null,null,null,null,null,null,null,null,null,null,null,1,{"$f":"IF(AZ75=1,G75,0)","v":0},{"$f":"IF(AZ75=2,G75,0)","v":0},{"$f":"IF(AZ75=3,G75,0)","v":0},{"$f":"IF(AZ75=4,G75,0)","v":0},{"$f":"IF(AZ75=5,G75,0)","v":0},null,null,null,null,null,null,null,null,null,null,null,null,null,null,null,null,null,null,null,null,null,1,1,null,null,null,null,null,null,null,null,null,null,null,null,null,null,null,null,null,null,null,null,null,null,null,0]
[null,null,"Pro napojení na stávající komunikace:12,00",null,12,null,null,null,null,null,null,null,"Pro napojení na stávající komunikace:12,00"]
[30,"583803733","Štípaný žulový obrubník 80-100/250/500\t\t\t","kus",1285.2,null,{"$f":"E77*F77","v":0},null,null,null,null,null,null,null,2,null,null,null,null,null,null,null,null,null,null,null,3,1,583803733,null,null,null,null,null,null,null,null,null,null,null,null,null,null,null,null,null,null,null,null,null,null,1,{"$f":"IF(AZ77=1,G77,0)","v":0},{"$f":"IF(AZ77=2,G77,0)","v":0},{"$f":"IF(AZ77=3,G77,0)","v":0},{"$f":"IF(AZ77=4,G77,0)","v":0},{"$f":"IF(AZ77=5,G77,0)","v":0},null,null,null,null,null,null,null,null,null,null,null,null,null,null,null,null,null,null,null,null,null,3,1,null,null,null,null,null,null,null,null,null,null,null,null,null,null,null,null,null,null,null,null,null,null,null,2.8000000000000001E-2]
[null,null,"Lemování dlážděných cest v jedné úrovni:630,00/0,5*1,02",null,1285.2,null,null,null,null,null,null,null,"Lemování dlážděných cest v jedné úrovni:630,00/0,5*1,02"]
[null,"Celkem za",{"$f":"CONCATENATE(B70,\" \",C70)","v":"91 Doplňující práce na komunikaci"},null,null,null,{"$f":"SUM(G70:G78)","v":0},null,null,null,null,null,null,null,4,null,null,null,null,null,null,null,null,null,null,null,null,null,null,null,null,null,null,null,null,null,null,null,null,null,null,null,null,null,null,null,null,null,null,null,null,null,{"$f":"SUM(BA70:BA78)","v":0},{"$f":"SUM(BB70:BB78)","v":0},{"$f":"SUM(BC70:BC78)","v":0},{"$f":"SUM(BD70:BD78)","v":0},{"$f":"SUM(BE70:BE78)","v":0}]
["Díl:","958","Mobiliář",null,null,null,null,null,null,null,null,null,null,null,1]
[31,"958 01-0001.RRX","D+M Parkové lavičky LME 151t - Miela - délka 1,85m přírodní Jatoba, Al konstrukce","kus",4,null,{"$f":"E81*F81","v":0},null,null,null,null,null,null,null,2,null,null,null,null,null,null,null,null,null,null,null,12,0,28,null,null,null,null,null,null,null,null,null,null,null,null,null,null,null,null,null,null,null,null,null,null,1,{"$f":"IF(AZ81=1,G81,0)","v":0},{"$f":"IF(AZ81=2,G81,0)","v":0},{"$f":"IF(AZ81=3,G81,0)","v":0},{"$f":"IF(AZ81=4,G81,0)","v":0},{"$f":"IF(AZ81=5,G81,0)","v":0},null,null,null,null,null,null,null,null,null,null,null,null,null,null,null,null,null,null,null,null,null,12,0,null,null,null,null,null,null,null,null,null,null,null,null,null,null,null,null,null,null,null,null,null,null,null,0]
[null,"Celkem za",{"$f":"CONCATENATE(B80,\" \",C80)","v":"958 Mobiliář"},null,null,null,{"$f":"SUM(G80:G81)","v":0},null,null,null,null,null,null,null,4,null,null,null,null,null,null,null,null,null,null,null,null,null,null,null,null,null,null,null,null,null,null,null,null,null,null,null,null,null,null,null,null,null,null,null,null,null,{"$f":"SUM(BA80:BA81)","v":0},{"$f":"SUM(BB80:BB81)","v":0},{"$f":"SUM(BC80:BC81)","v":0},{"$f":"SUM(BD80:BD81)","v":0},{"$f":"SUM(BE80:BE81)","v":0}]
["Díl:","99","Staveništní přesun hmot",null,null,null,null,null,null,null,null,null,null,null,1]
[32,"998223011R00","Přesun hmot, pozemní komunikace, kryt dlážděný ","t",476.34962100000001,null,{"$f":"E84*F84","v":0},null,null,null,null,null,null,null,2,null,null,null,null,null,null,null,null,null,null,null,7,1,2,null,null,null,null,null,null,null,null,null,null,null,null,null,null,null,null,null,null,null,null,null,null,1,{"$f":"IF(AZ84=1,G84,0)","v":0},{"$f":"IF(AZ84=2,G84,0)","v":0},{"$f":"IF(AZ84=3,G84,0)","v":0},{"$f":"IF(AZ84=4,G84,0)","v":0},{"$f":"IF(AZ84=5,G84,0)","v":0},null,null,null,null,null,null,null,null,null,null,null,null,null,null,null,null,null,null,null,null,null,7,1,null,null,null,null,null,null,null,null,null,null,null,null,null,null,null,null,null,null,null,null,null,null,null,0]
[null,"Celkem za",{"$f":"CONCATENATE(B83,\" \",C83)","v":"99 Staveništní přesun hmot"},null,null,null,{"$f":"SUM(G83:G84)","v":0},null,null,null,null,null,null,null,4,null,null,null,null,null,null,null,null,null,null,null,null,null,null,null,null,null,null,null,null,null,null,null,null,null,null,null,null,null,null,null,null,null,null,null,null,null,{"$f":"SUM(BA83:BA84)","v":0},{"$f":"SUM(BB83:BB84)","v":0},{"$f":"SUM(BC83:BC84)","v":0},{"$f":"SUM(BD83:BD84)","v":0},{"$f":"SUM(BE83:BE84)","v":0}]
["Díl:","M21.2","Elektromontáře - Veřejné osvětlení",null,null,null,null,null,null,null,null,null,null,null,1]
[33,"M21 20-0001.SUB","D+M Veřejného osvětlení (samostatná příloha) ","soubor",1,{"$f":"SUM(VO!F25)","v":0},{"$f":"E87*F87","v":0},null,null,null,null,null,null,null,2,null,null,null,null,null,null,null,null,null,null,null,11,1,29,null,null,null,null,null,null,null,null,null,null,null,null,null,null,null,null,null,null,null,null,null,null,3,{"$f":"IF(AZ87=1,G87,0)","v":0},{"$f":"IF(AZ87=2,G87,0)","v":0},{"$f":"IF(AZ87=3,G87,0)","v":0},{"$f":"IF(AZ87=4,G87,0)","v":0},{"$f":"IF(AZ87=5,G87,0)","v":0},null,null,null,null,null,null,null,null,null,null,null,null,null,null,null,null,null,null,null,null,null,11,1,null,null,null,null,null,null,null,null,null,null,null,null,null,null,null,null,null,null,null,null,null,null,null,0]
[null,"Celkem za",{"$f":"CONCATENATE(B86,\" \",C86)","v":"M21.2 Elektromontáře - Veřejné osvětlení"},null,null,null,{"$f":"SUM(G86:G87)","v":0},null,null,null,null,null,null,null,4,null,null,null,null,null,null,null,null,null,null,null,null,null,null,null,null,null,null,null,null,null,null,null,null,null,null,null,null,null,null,null,null,null,null,null,null,null,{"$f":"SUM(BA86:BA87)","v":0},{"$f":"SUM(BB86:BB87)","v":0},{"$f":"SUM(BC86:BC87)","v":0},{"$f":"SUM(BD86:BD87)","v":0},{"$f":"SUM(BE86:BE87)","v":0}]

{"sheet":"VO","index":3,"n_rows":25,"n_cols":6,"rows_kept":25,"cut":false,"hidden":false,"merged":[[24,3,24,4]]}
[null,"POLOŽKOVÝ ROZPOČET VEŘEJNÉHO OSVĚTLENÍ"]
[]
["poř. číslo","popis a typ","j. m.","množství","jed.    cena","cena celkem"]
[1,"Kabel CYKY3Jx1.5","m",100,null,{"$f":"D4*E4","v":0}]
[2,"Kabel CYKY4Jx10","m",380,null,0]
[3,"Trubka kabelová chráničkanapříklad  KOPOFLEX KF 09110 - položení a dodávka včetně zatažení kabelů do cháničky ","m",45,null,0]
[4,"Demontáž ze stožáru výšky do 5 m stávajícího svítidla venkovního osvětlení včetně předání svítidla do skladu správce VO ","ks",13,null,0]
[5,"Demontáž stávajícího stožáru vežejného osvětlení výšky do 5 m včetně předání stožáru do skladu správce VO","ks",13,null,0]
[6,"Odpojení ze stávajícího stožáru instalovaného v stávajícím chodníku kabelu průřezu 4x10 mm2 a demontáž kabelu z tělesa stožáru a ze základu, včetně výkopových práci na uvolněný vstupu kabelu do základu stožáru","ks",1,null,0]
[7,"Odpojení ze stávajícího stožáru dvou kabelu průřezu 4x10, demontáž kabelů ze stožáru a ze základu stožáru, demolování stávajícího betonového základu rozměru 400x400x900 mm včetně výkopových práci, odvozu sutí a zahození jámy zeminou, která zůstane  jako přebytek po výkopu rýhy pro nové kabely VO","ks",3,null,0]
[8,"Nový ocelový sadový bezpaticový hladky stožár průměru 76 mm celkové výšky 5,3 m pro zapuštění do základového pouzdra hloubky 0,8 m, výška nad zemí 4,5 m, barva RAL7043, součásti stožáru jsou dvířka a stožárová výzbroj s 1 pojistkou a svorkami pro připojení 3 kabelů průřezu do 4x10  ","ks",20,null,0]
[9,"Venkovní svítidlo na stožáru celkové výšky (se svítidelm) h=5 m, světelný zdroj halogenidová výbojka HST příkonu 70W/6600 Lm, elektronickým symetrický předřadníkem, třída ochrany II , krytí IP66, IK08, základná a rameno svítidla: tlakově odlévaný hliník (LM6), vrchní kryt svítidla: vytlačovaný hliník, barva hlinkových prvku tělesa: prášková tmavě písková šedá 900 (odstín blížící se RAL7043), difuzor: čirý polykarbonát s pískovaným pásem, šroubové upevňovací prvky: nerezová ocel, rozměry: Ø700/700 x 500 mm,  montáž na vrchol sloupu pomocí nástavce průměru Ø60 mm, příklad typu: AVENUE F2 70W HIDE 2,5Kv E27 CL2, Thorn","ks",20,null,0]
[10,"Připojení do stožárové rozvodnice nového CYKY4Jx10","ks",20,null,0]
[11,"Zemnící FeZn drát průměru 10 mm","m",400,null,0]
[12,"Svorka FeZn spojovací pro zemnící drát","ks",10,null,0]
[13,"Svorka FeZn pro spojovaní FeZn pásku a drátu","ks",20,null,0]
[14,"Připojení k novému stožáru zemnícího FeZn drátu průměru 10 mm","ks",20,null,0]
[15,"Ochranné platy na kabely 250 x 1000 mm","m",380,null,0]
[16,"Výstražná PE páska šířky 100 mm","m",380,null,0]
[17,"Betonový základ 400x400x900 mm pro vetknutý stožár výšky 6 m, včetně výkopu, odvozu přebytku zeminy, kabelových prostupů a keramické nebo plechové desky pod stožár ","ks",20,null,0]
[18,"Výkop rýhy ve volném terénu rozměru 0.35x0.8 m  včetně zasípání výkopu a odvozu přebytku zeminy, uvedení povrchu do původního stavu není předmětem dodávky elektroinstalaci ","m",380,null,0]
[19,"Zasípání dna výkopu pískem zrnitosti do 7 mm","m3",25,null,0]
[20,"Výchozí revize","soubor",1,null,0]
[21,"Drobní instalační materiál","soubor",1,null,0]
[null,null,null,"Celkem",null,{"$f":"SUM(F4:F24)","v":0}]